[Event "European Online Club-ch-A 2021"]
[Site "Online"]
[Date "2021.03.27"]
[Round "7.2"]
[White "Krieger, Markus"]
[Black "Nemeth, Miklos"]
[Result "0-1"]
[ECO "C28"]
[WhiteElo "2050"]
[BlackElo "2488"]
[Annotator "ChessBase"]
[PlyCount "152"]
[EventDate "2021.03.27"]
[EventType "team-tourn"]
[EventCountry "NET"]
[SourceTitle "playchess.com"]
[Source "ChessBase"]
[SourceQuality "1"]
[TimeControl "900+5"]

1. e4 {[%emt 0:00:00]} e5 {[%emt 0:00:03]} 2. Bc4 {[%emt 0:00:03]} Nc6 {[%emt 0:00:13]} 3. Nc3 {[%emt 0:00:03]} Nf6 {[%emt 0:00:04]} 4. d3 {[%emt 0:00:04]} Na5 {[%emt 0:00:15]} 5. Bb3 {[%emt 0:00:19]} Bb4 {[%emt 0:00:31]} 6. Nf3 {[%emt 0:00:11]} Nxb3 {[%emt 0:00:15]} 7. axb3 {[%emt 0:00:03]} d6 {[%emt 0:00:03]} 8. h3 {[%emt 0:00:09]} h6 {[%emt 0:00:05]} 9. Bd2 {[%emt 0:00:16]} c6 {[%emt 0:00:12]} 10. Ne2 {[%emt 0:00:05]} Bxd2+ {[%emt 0:00:12]} 11. Qxd2 {[%emt 0:00:00]} Qc7 {[%emt 0:00:09]} 12. Qe3 {[%emt 0:00:27]} b6 {[%emt 0:00:15]} 13. d4 {[%emt 0:00:38]} O-O {[%emt 0:00:30]} 14. dxe5 {[%emt 0:00:04]} dxe5 {[%emt 0:00:04]} 15. O-O {[%emt 0:00:09]} Be6 {[%emt 0:00:26]} 16. Rfd1 {[%emt 0:00:05]} Rfd8 {[%emt 0:00:05]} 17. Ng3 {[%emt 0:00:14]} a5 {[%emt 0:01:18]} 18. Qc3 {[%emt 0:00:20]} Nd7 {[%emt 0:00:08]} 19. Rd2 {[%emt 0:00:18]} f6 {[%emt 0:00:05]} 20. Rad1 {[%emt 0:00:03]} Nc5 {[%emt 0:00:09]} 21. Rxd8+ {[%emt 0:01:06]} Rxd8 {[%emt 0:00:04]} 22. Rxd8+ {[%emt 0:00:00]} Qxd8 {[%emt 0:00:02]} 23. Qd2 {[%emt 0:00:06]} Qxd2 {[%emt 0:00:59]} 24. Nxd2 {[%emt 0:00:00]} Na6 {[%emt 0:00:04]} 25. Ngf1 {[%emt 0:00:46]} Nb4 {[%emt 0:00:22]} 26. Ne3 {[%emt 0:00:07]} b5 {[%emt 0:00:12]} 27. Kf1 {[%emt 0:00:07]} Kf7 {[%emt 0:00:03]} 28. Ke2 {[%emt 0:00:03]} Ke7 {[%emt 0:00:06]} 29. Nf3 {[%emt 0:00:43]} g6 {[%emt 0:00:39]} 30. Kd2 {[%emt 0:00:12]} Na6 {[%emt 0:00:21]} 31. Ne1 {[%emt 0:01:28]} f5 {[%emt 0:01:02]} 32. Nd3 {[%emt 0:00:29]} f4 {[%emt 0:01:26]} 33. Ng4 {[%emt 0:00:54]} Bxg4 {[%emt 0:00:03]} 34. hxg4 {[%emt 0:00:00]} Kd6 {[%emt 0:00:09]} 35. f3 {[%emt 0:00:42]} Nc7 {[%emt 0:00:31]} 36. c3 {[%emt 0:01:18]} Ne6 {[%emt 0:00:22]} 37. Kc2 {[%emt 0:00:25]} c5 {[%emt 0:01:42]} 38. Nc1 {[%emt 0:01:07]} c4 {[%emt 0:00:45]} 39. bxc4 {[%emt 0:01:11]} bxc4 {[%emt 0:00:03]} 40. b3 {[%emt 0:00:24]} h5 {[%emt 0:01:22]} 41. gxh5 {[%emt 0:00:27]} gxh5 {[%emt 0:00:02]} 42. bxc4 {[%emt 0:00:26]} Nc5 {[%emt 0:00:05]} 43. Ne2 {[%emt 0:00:23]} Nd7 {[%emt 0:00:39]} 44. Kb3 {[%emt 0:00:33]} Kc5 {[%emt 0:00:11]} 45. Ka4 {[%emt 0:01:19]} Nb6+ {[%emt 0:00:56]} 46. Kxa5 {[%emt 0:00:20]} Nxc4+ {[%emt 0:00:03]} 47. Ka4 {[%emt 0:00:13]} Ne3 {[%emt 0:00:06]} 48. Kb3 {[%emt 0:00:08]} Nxg2 {[%emt 0:00:08]} 49. Ng1 {[%emt 0:00:06]} Ne1 {[%emt 0:00:09]} 50. c4 {[%emt 0:00:06]} Ng2 {[%emt 0:00:30]} 51. Kc3 {[%emt 0:00:09]} Ne3 {[%emt 0:00:02]} 52. Kd3 {[%emt 0:00:10]} Nxc4 {[%emt 0:00:05]} 53. Nh3 {[%emt 0:00:01]} Nb2+ {[%emt 0:00:39]} 54. Kc3 {[%emt 0:00:15]} Na4+ {[%emt 0:00:07]} 55. Kd3 {[%emt 0:00:02]} Nb6 {[%emt 0:00:02]} 56. Ng5 {[%emt 0:00:03]} Kd6 {[%emt 0:00:05]} 57. Ke2 {[%emt 0:00:09]} Ke7 {[%emt 0:00:06]} 58. Kf2 {[%emt 0:00:04]} Kf6 {[%emt 0:00:03]} 59. Nh3 {[%emt 0:00:01]} Nc4 {[%emt 0:00:06]} 60. Ke2 {[%emt 0:00:07]} Nd6 {[%emt 0:00:08]} 61. Kf2 {[%emt 0:00:04]} Nf7 {[%emt 0:00:02]} 62. Kg2 {[%emt 0:00:07]} Ke6 {[%emt 0:00:10]} 63. Kf2 {[%emt 0:00:03]} Kd6 {[%emt 0:00:10]} 64. Ke2 {[%emt 0:00:06]} Kc5 {[%emt 0:00:02]} 65. Kd3 {[%emt 0:00:02]} Kb4 {[%emt 0:00:06]} 66. Kd2 {[%emt 0:00:19]} Kc4 {[%emt 0:00:02]} 67. Kc2 {[%emt 0:00:01]} Kd4 {[%emt 0:00:03]} 68. Kd2 {[%emt 0:00:01]} h4 {[%emt 0:00:04]} 69. Ng1 {[%emt 0:00:04]} Ng5 {[%emt 0:00:05]} 70. Ke2 {[%emt 0:00:12]} h3 {[%emt 0:00:03]} 71. Kf2 {[%emt 0:00:02]} h2 {[%emt 0:00:06]} 72. Ne2+ {[%emt 0:00:01]} Kd3 {[%emt 0:00:02]} 73. Nxf4+ {[%emt 0:00:05]} exf4 {[%emt 0:00:03]} 74. Kg2 {[%emt 0:00:00]} Nxf3 {[%emt 0:00:09]} 75. e5 {[%emt 0:00:01]} Nxe5 {[%emt 0:00:03]} 76. Kxh2 {[%emt 0:00:00]} Ke2 {[%emt 0:00:05]} 0-1

[Event "European Online Club-ch-A 2021"]
[Site "Online"]
[Date "2021.03.27"]
[Round "7.3"]
[White "Kovacs, Gabor"]
[Black "Ferster, Fabian"]
[Result "1-0"]
[ECO "B31"]
[WhiteElo "2455"]
[BlackElo "2149"]
[Annotator "ChessBase"]
[PlyCount "107"]
[EventDate "2021.03.27"]
[EventType "team-tourn"]
[EventCountry "NET"]
[SourceTitle "playchess.com"]
[Source "ChessBase"]
[SourceQuality "1"]
[TimeControl "900+5"]

1. Nf3 {[%emt 0:00:00]} c5 {[%emt 0:00:03]} 2. e4 {[%emt 0:00:17]} Nc6 {[%emt 0:00:02]} 3. Bb5 {[%emt 0:00:03]} g6 {[%emt 0:00:02]} 4. O-O {[%emt 0:00:03]} Bg7 {[%emt 0:00:02]} 5. Re1 {[%emt 0:00:01]} e5 {[%emt 0:00:01]} 6. c3 {[%emt 0:00:14]} Nge7 {[%emt 0:00:03]} 7. h3 {[%emt 0:00:16]} O-O {[%emt 0:00:02]} 8. Bf1 {[%emt 0:00:06]} d6 {[%emt 0:00:05]} 9. Na3 {[%emt 0:00:06]} h6 {[%emt 0:00:26]} 10. Nc2 {[%emt 0:00:07]} f5 {[%emt 0:00:01]} 11. d3 {[%emt 0:00:02]} Kh7 {[%emt 0:00:41]} 12. b4 {[%emt 0:00:42]} b6 {[%emt 0:01:32]} 13. Rb1 {[%emt 0:00:12]} g5 {[%emt 0:00:04]} 14. Be2 {[%emt 0:03:29]} Ng6 {[%emt 0:00:15]} 15. exf5 {[%emt 0:00:13]} Bxf5 {[%emt 0:00:06]} 16. Ne3 {[%emt 0:00:02]} Be6 {[%emt 0:00:26]} 17. b5 {[%emt 0:01:40]} Nce7 {[%emt 0:00:05]} 18. d4 {[%emt 0:01:03]} cxd4 {[%emt 0:02:57]} 19. cxd4 {[%emt 0:00:04]} e4 {[%emt 0:00:01]} 20. Nd2 {[%emt 0:00:29]} d5 {[%emt 0:00:03]} 21. Bb2 {[%emt 0:01:38]} Nf4 {[%emt 0:00:44]} 22. Rc1 {[%emt 0:00:18]} Bxh3 {[%emt 0:01:12]} 23. Bf1 {[%emt 0:00:57]} Be6 {[%emt 0:00:42]} 24. Nb3 {[%emt 0:00:12]} Qd7 {[%emt 0:01:05]} 25. Ba3 {[%emt 0:00:19]} Rac8 {[%emt 0:00:53]} 26. Qd2 {[%emt 0:00:10]} Rxc1 {[%emt 0:00:11]} 27. Rxc1 {[%emt 0:00:03]} Rc8 {[%emt 0:00:01]} 28. Rxc8 {[%emt 0:00:40]} Nxc8 {[%emt 0:00:03]} 29. Qb4 {[%emt 0:00:02]} Ng6 {[%emt 0:00:12]} 30. Qc3 {[%emt 0:00:10]} Nd6 {[%emt 0:00:25]} 31. Bxd6 {[%emt 0:00:24]} Qxd6 {[%emt 0:00:03]} 32. Na1 {[%emt 0:00:08]} Bf8 {[%emt 0:01:40]} 33. Nac2 {[%emt 0:00:04]} h5 {[%emt 0:00:06]} 34. a3 {[%emt 0:00:40]} h4 {[%emt 0:01:53]} 35. Nb4 {[%emt 0:00:17]} g4 {[%emt 0:00:04]} 36. Qc6 {[%emt 0:00:34]} g3 {[%emt 0:00:41]} 37. Qxd6 {[%emt 0:00:07]} Bxd6 {[%emt 0:00:17]} 38. Nbxd5 {[%emt 0:00:03]} Bxd5 {[%emt 0:00:39]} 39. Nxd5 {[%emt 0:00:03]} Bxa3 {[%emt 0:00:00]} 40. Nf6+ {[%emt 0:00:20]} Kg7 {[%emt 0:00:03]} 41. Nxe4 {[%emt 0:00:01]} Bb2 {[%emt 0:00:08]} 42. fxg3 {[%emt 0:00:08]} Bxd4+ {[%emt 0:00:04]} 43. Kh2 {[%emt 0:00:04]} hxg3+ {[%emt 0:00:02]} 44. Kxg3 {[%emt 0:00:03]} Ne5 {[%emt 0:00:08]} 45. Kf4 {[%emt 0:00:05]} Kf7 {[%emt 0:00:03]} 46. Nd6+ {[%emt 0:00:20]} Ke6 {[%emt 0:00:05]} 47. Nc8 {[%emt 0:00:01]} Kd5 {[%emt 0:00:12]} 48. Nxa7 {[%emt 0:00:03]} Nf7 {[%emt 0:00:04]} 49. g4 {[%emt 0:00:14]} Be5+ {[%emt 0:00:06]} 50. Kf5 {[%emt 0:00:08]} Nd6+ {[%emt 0:00:03]} 51. Kg6 {[%emt 0:00:02]} Kc5 {[%emt 0:00:03]} 52. g5 {[%emt 0:00:16]} Ne4 {[%emt 0:00:04]} 53. Kf5 {[%emt 0:00:11]} Kd5 {[%emt 0:00:22]} 54. Bg2 {[%emt 0:00:04]} 1-0

[Event "European Online Club-ch-A 2021"]
[Site "Online"]
[Date "2021.03.27"]
[Round "7.4"]
[White "Frick, Renato"]
[Black "Csonka, Attila Istvan"]
[Result "0-1"]
[ECO "B41"]
[WhiteElo "1947"]
[BlackElo "2362"]
[Annotator "NA"]
[PlyCount "38"]
[EventDate "2021.03.27"]
[EventType "team-tourn"]
[EventCountry "NET"]
[SourceTitle "playchess.com"]
[Source "ChessBase"]
[SourceQuality "1"]
[TimeControl "900+5"]

1. e4 {[%emt 0:00:00]} c5 {[%emt 0:00:04]} 2. Nf3 {[%emt 0:00:04]} e6 {[%emt 0:00:02]} 3. d4 {[%emt 0:00:02]} cxd4 {[%emt 0:00:02]} 4. Nxd4 {[%emt 0:00:02]} Nc6 {[%emt 0:00:02]} 5. c4 {[%emt 0:00:04]} Nf6 {[%emt 0:00:09]} 6. Nc3 {[%emt 0:00:03]} Qc7 {[%emt 0:00:14]} 7. Be2 {[%emt 0:00:36]} a6 {[%emt 0:00:08]} 8. O-O {[%emt 0:00:15]} h5 {[%emt 0:00:11]} 9. h3 {[%emt 0:01:13]} Bb4 {[%emt 0:01:13]} 10. Nxc6 {[%emt 0:02:24]} dxc6 {[%emt 0:00:08]} 11. Bd2 {[%emt 0:01:07]} Bc5 {[%emt 0:00:51]} 12. Bg5 {[%emt 0:02:14]} e5 {[%emt 0:00:08]} 13. Bxf6 {[%emt 0:00:21]} gxf6 {[%emt 0:00:03]} 14. Bxh5 {[%emt 0:00:03]} Be6 {[%emt 0:00:06]} 15. Be2 {[%emt 0:00:19]} Ke7 {[%emt 0:00:13]} 16. Qb3 {[%emt 0:00:39]} Rag8 {[%emt 0:00:10]} 17. Na4 {[%emt 0:00:14]} Bd4 {[%emt 0:00:04]} 18. Kh2 {[%emt 0:00:54]} Qc8 {[%emt 0:00:39]} 19. f4 {[%emt 0:01:52]} Rxg2+ {[%emt 0:00:35]} 0-1

[Event "European Online Club-ch-A 2021"]
[Site "Online"]
[Date "2021.03.27"]
[Round "7.5"]
[White "Jakubowski, Krzysztof"]
[Black "Deac, Bogdan-Daniel"]
[Result "0-1"]
[ECO "B33"]
[WhiteElo "2497"]
[BlackElo "2625"]
[Annotator "ChessBase"]
[PlyCount "166"]
[EventDate "2021.03.27"]
[EventType "team-tourn"]
[EventCountry "NET"]
[SourceTitle "playchess.com"]
[Source "ChessBase"]
[SourceQuality "1"]
[TimeControl "900+5"]

1. e4 {[%emt 0:00:00]} c5 {[%emt 0:00:07]} 2. Nf3 {[%emt 0:00:04]} Nc6 {[%emt 0:00:03]} 3. d4 {[%emt 0:00:06]} cxd4 {[%emt 0:00:02]} 4. Nxd4 {[%emt 0:00:02]} Nf6 {[%emt 0:00:03]} 5. Nc3 {[%emt 0:00:03]} e5 {[%emt 0:00:02]} 6. Ndb5 {[%emt 0:00:02]} d6 {[%emt 0:00:01]} 7. Bg5 {[%emt 0:00:03]} a6 {[%emt 0:00:02]} 8. Na3 {[%emt 0:00:03]} b5 {[%emt 0:00:01]} 9. Nd5 {[%emt 0:00:02]} Be7 {[%emt 0:00:02]} 10. Bxf6 {[%emt 0:00:02]} Bxf6 {[%emt 0:00:01]} 11. c3 {[%emt 0:00:03]} Rb8 {[%emt 0:01:43]} 12. Nc2 {[%emt 0:00:08]} Bg5 {[%emt 0:00:02]} 13. Be2 {[%emt 0:01:12]} O-O {[%emt 0:02:12]} 14. O-O {[%emt 0:00:05]} a5 {[%emt 0:00:01]} 15. a3 {[%emt 0:00:04]} Ne7 {[%emt 0:00:53]} 16. Nce3 {[%emt 0:01:35]} Bxe3 {[%emt 0:02:55]} 17. Nxe3 {[%emt 0:00:07]} a4 {[%emt 0:00:01]} 18. Qd3 {[%emt 0:02:13]} Qb6 {[%emt 0:01:25]} 19. Rad1 {[%emt 0:00:06]} Rd8 {[%emt 0:00:02]} 20. Rd2 {[%emt 0:01:16]} Be6 {[%emt 0:00:08]} 21. Re1 {[%emt 0:00:02]} d5 {[%emt 0:02:36]} 22. exd5 {[%emt 0:00:16]} Nxd5 {[%emt 0:00:02]} 23. Red1 {[%emt 0:00:17]} f6 {[%emt 0:02:11]} 24. Qxb5 {[%emt 0:02:53]} Qxb5 {[%emt 0:00:02]} 25. Bxb5 {[%emt 0:00:04]} Rxb5 {[%emt 0:00:02]} 26. c4 {[%emt 0:00:03]} Rb3 {[%emt 0:00:01]} 27. cxd5 {[%emt 0:00:18]} Bd7 {[%emt 0:00:03]} 28. Rc1 {[%emt 0:00:06]} Kf8 {[%emt 0:00:03]} 29. Rc7 {[%emt 0:00:22]} Ke8 {[%emt 0:00:03]} 30. h4 {[%emt 0:01:22]} Rdb8 {[%emt 0:01:30]} 31. Nc4 {[%emt 0:01:31]} Kd8 {[%emt 0:00:36]} 32. Ra7 {[%emt 0:00:28]} R3b7 {[%emt 0:00:18]} 33. Rxb7 {[%emt 0:00:58]} Rxb7 {[%emt 0:00:02]} 34. Na5 {[%emt 0:00:02]} Rb5 {[%emt 0:00:27]} 35. Nc6+ {[%emt 0:00:05]} Ke8 {[%emt 0:00:04]} 36. Nb4 {[%emt 0:00:14]} Bf5 {[%emt 0:00:02]} 37. f3 {[%emt 0:00:18]} h5 {[%emt 0:00:02]} 38. Kf2 {[%emt 0:00:32]} Rc5 {[%emt 0:00:02]} 39. Rd1 {[%emt 0:00:04]} Kd7 {[%emt 0:00:08]} 40. Ke3 {[%emt 0:00:05]} Rc4 {[%emt 0:00:03]} 41. g3 {[%emt 0:00:06]} Kd6 {[%emt 0:00:04]} 42. Kd2 {[%emt 0:00:28]} e4 {[%emt 0:00:13]} 43. fxe4 {[%emt 0:00:09]} Bxe4 {[%emt 0:00:02]} 44. Ke3 {[%emt 0:00:09]} Bf5 {[%emt 0:00:04]} 45. Rf1 {[%emt 0:00:16]} Bd7 {[%emt 0:00:08]} 46. Kd2 {[%emt 0:00:12]} Rd4+ {[%emt 0:00:03]} 47. Ke3 {[%emt 0:00:04]} Rg4 {[%emt 0:00:04]} 48. Kf2 {[%emt 0:00:04]} Rc4 {[%emt 0:00:03]} 49. Ke3 {[%emt 0:00:02]} Rg4 {[%emt 0:00:09]} 50. Kf2 {[%emt 0:00:03]} Rc4 {[%emt 0:00:02]} 51. Ke3 {[%emt 0:00:02]} Bg4 {[%emt 0:00:04]} 52. Kd3 {[%emt 0:00:09]} Rc5 {[%emt 0:00:06]} 53. Kd4 {[%emt 0:00:05]} Be2 {[%emt 0:00:07]} 54. Re1 {[%emt 0:00:02]} Rc4+ {[%emt 0:00:01]} 55. Ke3 {[%emt 0:00:04]} Bg4 {[%emt 0:00:02]} 56. Kd3 {[%emt 0:00:03]} Rc8 {[%emt 0:00:02]} 57. Kd4 {[%emt 0:00:04]} Bd7 {[%emt 0:00:01]} 58. Re3 {[%emt 0:00:22]} Rc1 {[%emt 0:00:03]} 59. Rc3 {[%emt 0:00:03]} Rb1 {[%emt 0:00:09]} 60. Rc2 {[%emt 0:00:04]} Rg1 {[%emt 0:00:08]} 61. Rc3 {[%emt 0:00:01]} Rd1+ {[%emt 0:00:03]} 62. Rd3 {[%emt 0:00:03]} Rb1 {[%emt 0:00:02]} 63. Kc3 {[%emt 0:00:04]} Bf5 {[%emt 0:00:07]} 64. Rd2 {[%emt 0:00:03]} Rg1 {[%emt 0:00:03]} 65. Nc6 {[%emt 0:00:11]} Rxg3+ {[%emt 0:00:02]} 66. Kb4 {[%emt 0:00:01]} Rg4+ {[%emt 0:00:07]} 67. Kb5 {[%emt 0:00:03]} Bd7 {[%emt 0:00:06]} 68. Kb6 {[%emt 0:00:03]} Rxh4 {[%emt 0:00:02]} 69. Na5 {[%emt 0:00:03]} Re4 {[%emt 0:00:16]} 70. Nb7+ {[%emt 0:00:03]} Ke7 {[%emt 0:00:02]} 71. d6+ {[%emt 0:00:08]} Ke8 {[%emt 0:00:02]} 72. Nc5 {[%emt 0:00:05]} Re5 {[%emt 0:00:03]} 73. Rc2 {[%emt 0:00:09]} Bf5 {[%emt 0:00:15]} 74. Kc7 {[%emt 0:00:11]} h4 {[%emt 0:00:09]} 75. d7+ {[%emt 0:00:12]} Bxd7 {[%emt 0:00:02]} 76. Nxd7 {[%emt 0:00:02]} Re7 {[%emt 0:00:02]} 77. Rd2 {[%emt 0:00:04]} h3 {[%emt 0:00:02]} 78. Kc6 {[%emt 0:00:03]} f5 {[%emt 0:00:02]} 79. Nc5 {[%emt 0:00:06]} g5 {[%emt 0:00:02]} 80. Kd6 {[%emt 0:00:05]} g4 {[%emt 0:00:02]} 81. Rh2 {[%emt 0:00:02]} Re3 {[%emt 0:00:12]} 82. Ne6 {[%emt 0:00:05]} Kf7 {[%emt 0:00:03]} 83. b4 {[%emt 0:00:12]} Rxe6+ {[%emt 0:00:06]} 0-1

[Event "European Online Club-ch-A 2021"]
[Site "Online"]
[Date "2021.03.27"]
[Round "7.6"]
[White "Istratescu, Andrei"]
[Black "Schmidek, Emil"]
[Result "1-0"]
[ECO "B12"]
[WhiteElo "2553"]
[BlackElo "2402"]
[Annotator "ChessBase"]
[PlyCount "91"]
[EventDate "2021.03.27"]
[EventType "team-tourn"]
[EventCountry "NET"]
[SourceTitle "playchess.com"]
[Source "ChessBase"]
[SourceQuality "1"]
[TimeControl "900+5"]

1. e4 {[%emt 0:00:00]} c6 {[%emt 0:00:03]} 2. d4 {[%emt 0:00:05]} d5 {[%emt 0:00:01]} 3. e5 {[%emt 0:00:02]} Bf5 {[%emt 0:00:02]} 4. h4 {[%emt 0:00:03]} h5 {[%emt 0:00:03]} 5. Bd3 {[%emt 0:00:12]} Bxd3 {[%emt 0:00:12]} 6. Qxd3 {[%emt 0:00:02]} e6 {[%emt 0:00:10]} 7. Ne2 {[%emt 0:00:12]} Ne7 {[%emt 0:00:30]} 8. Bg5 {[%emt 0:00:13]} Qb6 {[%emt 0:00:03]} 9. Nd2 {[%emt 0:00:06]} Nf5 {[%emt 0:00:16]} 10. b3 {[%emt 0:00:07]} Nd7 {[%emt 0:00:05]} 11. c4 {[%emt 0:00:04]} Qa6 {[%emt 0:00:07]} 12. Ng3 {[%emt 0:00:15]} Ne7 {[%emt 0:00:52]} 13. O-O {[%emt 0:00:12]} f6 {[%emt 0:00:28]} 14. exf6 {[%emt 0:00:07]} gxf6 {[%emt 0:00:04]} 15. Be3 {[%emt 0:00:10]} O-O-O {[%emt 0:00:10]} 16. Qc2 {[%emt 0:00:05]} Kb8 {[%emt 0:00:21]} 17. Rfe1 {[%emt 0:00:03]} e5 {[%emt 0:00:48]} 18. a4 {[%emt 0:00:25]} c5 {[%emt 0:02:48]} 19. dxe5 {[%emt 0:00:12]} d4 {[%emt 0:01:27]} 20. Bf4 {[%emt 0:00:24]} fxe5 {[%emt 0:00:15]} 21. Rxe5 {[%emt 0:00:06]} Ka8 {[%emt 0:00:06]} 22. Re2 {[%emt 0:00:17]} Nc6 {[%emt 0:00:23]} 23. Rae1 {[%emt 0:00:23]} Bg7 {[%emt 0:00:31]} 24. Nf3 {[%emt 0:00:19]} d3 {[%emt 0:01:45]} 25. Qxd3 {[%emt 0:00:03]} Nde5 {[%emt 0:00:02]} 26. Nxe5 {[%emt 0:00:37]} Rxd3 {[%emt 0:00:05]} 27. Nxd3 {[%emt 0:00:02]} b6 {[%emt 0:00:47]} 28. Re8+ {[%emt 0:00:31]} Rxe8 {[%emt 0:00:19]} 29. Rxe8+ {[%emt 0:00:02]} Kb7 {[%emt 0:00:01]} 30. Nf5 {[%emt 0:00:01]} Qa5 {[%emt 0:00:14]} 31. Nxg7 {[%emt 0:00:18]} Qc3 {[%emt 0:00:31]} 32. Ne5 {[%emt 0:00:03]} Nd4 {[%emt 0:00:22]} 33. Nf7 {[%emt 0:00:20]} Qxb3 {[%emt 0:01:19]} 34. Kh2 {[%emt 0:00:21]} Qd1 {[%emt 0:00:49]} 35. Nd6+ {[%emt 0:00:47]} Ka6 {[%emt 0:00:07]} 36. Bg5 {[%emt 0:00:44]} Ne2 {[%emt 0:00:38]} 37. Rxe2 {[%emt 0:00:05]} Qxe2 {[%emt 0:00:01]} 38. f4 {[%emt 0:00:05]} Ka5 {[%emt 0:00:36]} 39. Nge8 {[%emt 0:00:10]} Kxa4 {[%emt 0:00:31]} 40. Nf6 {[%emt 0:00:10]} b5 {[%emt 0:00:21]} 41. cxb5 {[%emt 0:00:09]} c4 {[%emt 0:00:02]} 42. Nfe4 {[%emt 0:00:03]} Kb3 {[%emt 0:00:08]} 43. f5 {[%emt 0:00:18]} c3 {[%emt 0:00:06]} 44. f6 {[%emt 0:00:03]} c2 {[%emt 0:00:03]} 45. f7 {[%emt 0:00:03]} Qg4 {[%emt 0:00:07]} 46. f8=Q {[%emt 0:00:09]} 1-0

[Event "European Online Club-ch-A 2021"]
[Site "Online"]
[Date "2021.03.27"]
[Round "7.7"]
[White "Agopov, Mikael"]
[Black "Marin, Mihail"]
[Result "1/2-1/2"]
[ECO "C16"]
[WhiteElo "2427"]
[BlackElo "2502"]
[Annotator "ChessBase"]
[PlyCount "64"]
[EventDate "2021.03.27"]
[EventType "team-tourn"]
[EventCountry "NET"]
[SourceTitle "playchess.com"]
[Source "ChessBase"]
[SourceQuality "1"]
[TimeControl "900+5"]

1. e4 {[%emt 0:00:00]} e6 {[%emt 0:00:03]} 2. d4 {[%emt 0:00:03]} d5 {[%emt 0:00:02]} 3. Nc3 {[%emt 0:00:01]} Bb4 {[%emt 0:00:03]} 4. e5 {[%emt 0:00:02]} b6 {[%emt 0:00:02]} 5. a3 {[%emt 0:00:01]} Bf8 {[%emt 0:00:02]} 6. Nf3 {[%emt 0:00:04]} Ne7 {[%emt 0:00:04]} 7. b4 {[%emt 0:00:02]} c5 {[%emt 0:00:20]} 8. Bg5 {[%emt 0:00:03]} a6 {[%emt 0:00:07]} 9. Bd3 {[%emt 0:01:21]} Qc7 {[%emt 0:00:16]} 10. O-O {[%emt 0:00:12]} h6 {[%emt 0:00:25]} 11. Bd2 {[%emt 0:00:13]} Nec6 {[%emt 0:00:16]} 12. bxc5 {[%emt 0:00:04]} bxc5 {[%emt 0:00:03]} 13. dxc5 {[%emt 0:04:08]} Nd7 {[%emt 0:00:43]} 14. Na4 {[%emt 0:00:03]} Nxc5 {[%emt 0:00:11]} 15. Nxc5 {[%emt 0:00:06]} Bxc5 {[%emt 0:00:03]} 16. Qe2 {[%emt 0:00:31]} Bb7 {[%emt 0:01:18]} 17. Rab1 {[%emt 0:00:24]} Ne7 {[%emt 0:01:10]} 18. Bb4 {[%emt 0:01:06]} Bxb4 {[%emt 0:00:29]} 19. Rxb4 {[%emt 0:00:03]} O-O {[%emt 0:00:55]} 20. Rfb1 {[%emt 0:00:05]} Bc6 {[%emt 0:00:30]} 21. Nd4 {[%emt 0:01:09]} a5 {[%emt 0:01:23]} 22. R4b3 {[%emt 0:00:20]} Rfb8 {[%emt 0:00:09]} 23. h4 {[%emt 0:00:36]} Ba4 {[%emt 0:00:45]} 24. Rxb8+ {[%emt 0:01:45]} Rxb8 {[%emt 0:00:03]} 25. Rxb8+ {[%emt 0:00:02]} Qxb8 {[%emt 0:00:02]} 26. Qe1 {[%emt 0:00:01]} Qb6 {[%emt 0:00:22]} 27. Qc3 {[%emt 0:00:06]} Nc6 {[%emt 0:00:21]} 28. Nxc6 {[%emt 0:00:39]} Bxc6 {[%emt 0:00:05]} 29. Qb3 {[%emt 0:00:09]} Qc7 {[%emt 0:01:13]} 30. Qc3 {[%emt 0:00:07]} Qb6 {[%emt 0:00:05]} 31. Qb3 {[%emt 0:00:07]} Qc7 {[%emt 0:00:02]} 32. Qc3 {[%emt 0:00:06]} Qb6 {[%emt 0:00:03]} 1/2-1/2

[Event "European Online Club-ch-A 2021"]
[Site "Online"]
[Date "2021.03.27"]
[Round "7.8"]
[White "Costachi, Mihnea"]
[Black "Wintzer, Joachim"]
[Result "1-0"]
[ECO "A43"]
[WhiteElo "2471"]
[BlackElo "2274"]
[Annotator "ChessBase"]
[PlyCount "123"]
[EventDate "2021.03.27"]
[EventType "team-tourn"]
[EventCountry "NET"]
[SourceTitle "playchess.com"]
[Source "ChessBase"]
[SourceQuality "1"]
[TimeControl "900+5"]

1. d4 {[%emt 0:00:00]} e6 {[%emt 0:00:07]} 2. Nf3 {[%emt 0:00:05]} c5 {[%emt 0:00:04]} 3. g3 {[%emt 0:00:12]} Qa5+ {[%emt 0:01:18]} 4. Nc3 {[%emt 0:00:08]} cxd4 {[%emt 0:00:29]} 5. Nxd4 {[%emt 0:00:04]} Bb4 {[%emt 0:00:46]} 6. Bd2 {[%emt 0:00:06]} Nc6 {[%emt 0:00:18]} 7. Nxc6 {[%emt 0:00:15]} dxc6 {[%emt 0:00:04]} 8. Bg2 {[%emt 0:00:04]} Qc7 {[%emt 0:01:27]} 9. O-O {[%emt 0:00:08]} Be7 {[%emt 0:00:36]} 10. Ne4 {[%emt 0:00:09]} Nf6 {[%emt 0:00:06]} 11. Bc3 {[%emt 0:00:42]} Nxe4 {[%emt 0:00:40]} 12. Bxe4 {[%emt 0:00:02]} O-O {[%emt 0:00:03]} 13. Qd3 {[%emt 0:00:13]} f5 {[%emt 0:00:21]} 14. Bg2 {[%emt 0:00:05]} e5 {[%emt 0:01:09]} 15. Qc4+ {[%emt 0:00:19]} Kh8 {[%emt 0:00:01]} 16. Rad1 {[%emt 0:00:48]} Bf6 {[%emt 0:01:20]} 17. Rd2 {[%emt 0:00:37]} e4 {[%emt 0:00:16]} 18. Bb4 {[%emt 0:00:27]} Qf7 {[%emt 0:00:54]} 19. Qxf7 {[%emt 0:00:59]} Rxf7 {[%emt 0:00:01]} 20. f3 {[%emt 0:00:55]} e3 {[%emt 0:00:59]} 21. Rdd1 {[%emt 0:01:01]} Be6 {[%emt 0:00:37]} 22. b3 {[%emt 0:00:16]} Be7 {[%emt 0:00:55]} 23. Bxe7 {[%emt 0:00:07]} Rxe7 {[%emt 0:00:02]} 24. Rd3 {[%emt 0:00:08]} f4 {[%emt 0:00:15]} 25. Rfd1 {[%emt 0:00:49]} g5 {[%emt 0:00:04]} 26. Rd4 {[%emt 0:00:05]} Rf8 {[%emt 0:00:04]} 27. Re4 {[%emt 0:00:12]} Rff7 {[%emt 0:00:14]} 28. gxf4 {[%emt 0:01:53]} gxf4 {[%emt 0:00:03]} 29. c4 {[%emt 0:00:01]} Kg7 {[%emt 0:00:34]} 30. h4 {[%emt 0:00:26]} Rd7 {[%emt 0:00:10]} 31. Red4 {[%emt 0:00:06]} c5 {[%emt 0:00:18]} 32. Rd6 {[%emt 0:00:03]} Rxd6 {[%emt 0:00:05]} 33. Rxd6 {[%emt 0:00:03]} Re7 {[%emt 0:00:01]} 34. Kh2 {[%emt 0:00:14]} Kf6 {[%emt 0:00:52]} 35. Bh3 {[%emt 0:00:03]} Ke5 {[%emt 0:00:02]} 36. Rd8 {[%emt 0:00:01]} Bxh3 {[%emt 0:00:05]} 37. Kxh3 {[%emt 0:00:02]} Rg7 {[%emt 0:00:06]} 38. Rd5+ {[%emt 0:00:33]} Kf6 {[%emt 0:00:13]} 39. Rxc5 {[%emt 0:01:31]} Rg1 {[%emt 0:00:02]} 40. Rh5 {[%emt 0:01:14]} Re1 {[%emt 0:01:29]} 41. Kg4 {[%emt 0:00:03]} Rxe2 {[%emt 0:00:03]} 42. Kxf4 {[%emt 0:00:02]} Rxa2 {[%emt 0:00:04]} 43. Kxe3 {[%emt 0:00:05]} Rb2 {[%emt 0:00:03]} 44. Rb5 {[%emt 0:01:13]} b6 {[%emt 0:00:02]} 45. Kf4 {[%emt 0:00:11]} Rb1 {[%emt 0:00:39]} 46. Ke4 {[%emt 0:00:04]} Re1+ {[%emt 0:00:09]} 47. Kd5 {[%emt 0:00:20]} Kf5 {[%emt 0:00:22]} 48. Kc6+ {[%emt 0:00:03]} Kf4 {[%emt 0:00:02]} 49. Kb7 {[%emt 0:00:21]} Re7+ {[%emt 0:00:02]} 50. Ka6 {[%emt 0:00:02]} Kxf3 {[%emt 0:00:03]} 51. Rg5 {[%emt 0:00:03]} Kf4 {[%emt 0:00:09]} 52. Rg1 {[%emt 0:00:16]} Rd7 {[%emt 0:00:17]} 53. h5 {[%emt 0:00:03]} Rd3 {[%emt 0:00:10]} 54. b4 {[%emt 0:00:05]} Ra3+ {[%emt 0:00:02]} 55. Kb7 {[%emt 0:00:08]} a5 {[%emt 0:00:02]} 56. b5 {[%emt 0:00:03]} Rh3 {[%emt 0:00:04]} 57. Kxb6 {[%emt 0:00:06]} a4 {[%emt 0:00:01]} 58. c5 {[%emt 0:00:06]} a3 {[%emt 0:00:04]} 59. c6 {[%emt 0:00:02]} a2 {[%emt 0:00:09]} 60. c7 {[%emt 0:00:05]} Rc3 {[%emt 0:00:02]} 61. Kb7 {[%emt 0:00:07]} Rg3 {[%emt 0:00:08]} 62. Rf1+ {[%emt 0:00:04]} 1-0